fUSD/lending_fUSD_20240607
["ID","MTS","AMOUNT","RATE_DAILY","PERIOD"]
[328725080,1717734644563,-225.89170686,0.00029861,2]
[328725081,1717734644573,-5593.12768824,0.00029861,2]
[328725082,1717734644583,-1170.64918668,0.00029861,2]
[328725083,1717734644592,-191.03600112,0.00029861,2]
[328725084,1717734644602,-162.07659997,0.00029861,2]
[328725085,1717734644612,-1251.56475616,0.00029861,2]
[328725086,1717734644621,-251.54063579,0.00029861,2]
[328725087,1717734644630,-2944.52717577,0.00029861,2]
[328725088,1717734644640,-203.94072812,0.00029862,2]
[328725089,1717734644650,-268.92159374,0.00029862,2]
[328725090,1717734644660,-280.01097109,0.00029862,2]
[328725091,1717734644669,-5309.44631681,0.00029862,2]
[328725092,1717734644680,-158.74114545,0.00029862,2]
[328725093,1717734644690,-441.5222992,0.00029862,2]
[328725094,1717734644701,-503.66714772,0.00029862,2]
[328725095,1717734644711,-1000.0,0.00029862,30]
[328725096,1717734644722,-1000.0,0.00029862,30]
[328725097,1717734644732,-1000.0,0.00029862,30]
[328725098,1717734644742,-1000.0,0.00029862,30]
[328725099,1717734644752,-1051.18852534,0.00029862,30]
[328725100,1717734644763,-3535.05205837,0.00029863,2]
[328725101,1717734644772,-17062.23039468,0.00029863,13]
[328725102,1717734644781,-716.18957714,0.00029863,5]
[328725103,1717734644790,-446.79515573,0.00029863,2]
[328725104,1717734644799,-16325.64846388,0.00029863,2]
[328725105,1717734644813,-2009.17869788,0.00029863,2]
[328725106,1717734645082,-1323.5,0.00027397,10]
[328725107,1717734645093,-16637.59735619,0.00029863,2]
[328725108,1717734645103,-169.07823965,0.00029863,2]
[328725109,1717734645114,-500.0,0.00029863,2]
[328725110,1717734645123,-239.75282357,0.00029863,2]
[328725111,1717734645133,-257.9877105,0.00029863,2]
[328725112,1717734645143,-200.0,0.00029863,2]
[328725113,1717734645152,-153.374398,0.00029863,7]
[328725114,1717734645163,-500.0,0.00029863,4]
[328725115,1717734645172,-500.0,0.00029863,4]
[328725116,1717734645181,-500.0,0.00029863,4]
[328725117,1717734645190,-500.0,0.00029863,4]
[328725118,1717734645200,-534.57184074,0.00029863,4]
[328725119,1717734645209,-500.0,0.00029863,4]
[328725120,1717734645219,-500.0,0.00029863,4]
[328725121,1717734645228,-500.0,0.00029863,4]
[328725122,1717734645238,-299.18213257,0.00029863,4]
[328725123,1717734645247,-500.0,0.00029863,4]
[328725124,1717734645257,-500.0,0.00029863,4]
[328725125,1717734645266,-500.0,0.00029863,4]
[328725126,1717734645280,-500.0,0.00029863,4]
[328725127,1717734645290,-500.0,0.00029863,4]
[328725128,1717734645299,-500.0,0.00029863,4]
[328725129,1717734645310,-500.0,0.00029863,4]
[328725130,1717734645322,-500.0,0.00029863,4]
[328725131,1717734645331,-500.0,0.00029863,4]
[328725132,1717734645340,-500.0,0.00029863,4]
[328725133,1717734645351,-500.0,0.00029863,4]
[328725134,1717734645362,-279.70899065,0.00029863,4]
[328725135,1717734645372,-347.44412284,0.00029863,4]
[328725136,1717734645385,-500.0,0.00029863,4]
[328725137,1717734645395,-500.0,0.00029863,4]
[328725138,1717734645406,-500.0,0.00029863,4]
[328725139,1717734645416,-500.0,0.00029863,4]
[328725140,1717734645425,-500.0,0.00029863,4]
[328725141,1717734645435,-500.0,0.00029863,4]
[328725142,1717734645445,-500.0,0.00029863,4]
[328725143,1717734645455,-500.0,0.00029863,4]
[328725144,1717734645464,-500.0,0.00029863,4]
[328725145,1717734645474,-222.03931306,0.00029863,4]
[328725146,1717734645483,-500.0,0.00029863,4]
[328725147,1717734645493,-500.0,0.00029863,4]
[328725148,1717734645504,-500.0,0.00029863,4]
[328725149,1717734645513,-500.0,0.00029863,4]
[328725150,1717734645523,-500.0,0.00029863,4]
[328725151,1717734645532,-500.0,0.00029863,4]
[328725152,1717734645542,-500.0,0.00029863,4]
[328725153,1717734645552,-568.77309944,0.00029863,4]
[328725154,1717734645561,-387.81857963,0.00029863,4]
[328725155,1717734645571,-609.28885297,0.00029863,4]
[328725157,1717734645580,-630.4192548,0.00029863,4]
[328725158,1717734645590,-551.68308728,0.00029863,4]
[328725159,1717734645600,-500.0,0.00029863,4]
[328725160,1717734645610,-500.0,0.00029863,4]
[328725161,1717734645620,-500.0,0.00029863,4]
[328725162,1717734645630,-500.0,0.00029863,4]
[328725165,1717734645640,-500.0,0.00029863,4]
[328725166,1717734645650,-532.80894522,0.00029863,4]
[328725168,1717734645661,-500.0,0.00029863,4]
[328725169,1717734645670,-500.0,0.00029863,4]
[328725170,1717734645679,-500.0,0.00029863,4]
[328725171,1717734645688,-500.0,0.00029863,4]
[328725172,1717734645697,-500.0,0.00029863,4]
[328725173,1717734645707,-500.0,0.00029863,4]
[328725174,1717734645716,-500.0,0.00029863,4]
[328725175,1717734645726,-500.0,0.00029863,4]
[328725176,1717734645735,-500.0,0.00029863,4]
[328725177,1717734645745,-500.0,0.00029863,4]
[328725178,1717734645756,-500.0,0.00029863,4]
[328725179,1717734645766,-500.0,0.00029863,4]
[328725180,1717734645775,-500.0,0.00029863,4]
[328725181,1717734645785,-500.0,0.00029863,4]
[328725182,1717734645795,-510.66856569,0.00029863,4]
[328725183,1717734645805,-500.0,0.00029863,4]
[328725184,1717734645815,-500.0,0.00029863,4]
[328725185,1717734645825,-500.0,0.00029863,4]
[328725186,1717734645835,-500.0,0.00029863,4]
[328725187,1717734645845,-500.0,0.00029863,4]
[328725188,1717734645855,-500.0,0.00029863,4]
[328725189,1717734645864,-500.0,0.00029863,4]
[328725190,1717734645874,-500.0,0.00029863,4]
[328725191,1717734645883,-500.0,0.00029863,4]
[328725192,1717734645893,-500.0,0.00029863,4]
[328725193,1717734645903,-500.0,0.00029863,2]
[328725194,1717734645913,-500.0,0.00029863,4]
[328725195,1717734645923,-602.2271031,0.00029863,4]
[328725196,1717734645932,-500.0,0.00029863,2]
[328725197,1717734645941,-500.0,0.00029863,4]
[328725198,1717734645951,-500.0,0.00029863,2]
[328725199,1717734645960,-500.0,0.00029863,4]
[328725200,1717734645969,-500.0,0.00029863,4]
[328725201,1717734645979,-500.0,0.00029863,2]
[328725202,1717734645988,-500.0,0.00029863,4]
[328725203,1717734645997,-500.0,0.00029863,4]
[328725204,1717734646006,-500.0,0.00029863,4]
[328725205,1717734646015,-500.0,0.00029863,2]
[328725206,1717734646025,-500.0,0.00029863,4]
[328725207,1717734646035,-190.05820276,0.00029863,4]
[328725208,1717734646044,-536.0910611,0.00029863,4]
[328725209,1717734646053,-500.0,0.00029863,2]
[328725210,1717734646063,-500.0,0.00029863,4]
[328725211,1717734646072,-500.0,0.00029863,2]
[328725212,1717734646081,-500.0,0.00029863,4]
[328725213,1717734646091,-511.50361934,0.00029863,2]
[328725214,1717734646100,-570.37772805,0.00029863,4]
[328725215,1717734646110,-500.0,0.00029863,4]
[328725216,1717734646119,-500.0,0.00029863,4]
[328725217,1717734646128,-500.0,0.00029863,4]
[328725218,1717734646138,-500.0,0.00029863,4]
[328725219,1717734646147,-500.0,0.00029863,4]
[328725220,1717734646159,-500.0,0.00029863,4]
[328725221,1717734646168,-554.49698307,0.00029863,4]
[328725222,1717734646176,-500.0,0.00029863,4]
[328725223,1717734646186,-500.0,0.00029863,4]
[328725224,1717734646195,-500.0,0.00029863,4]
[328725225,1717734646204,-500.0,0.00029863,4]
[328725226,1717734646214,-510.22038064,0.00029863,4]
[328725227,1717734646223,-500.0,0.00029863,4]
[328725228,1717734646232,-500.0,0.00029863,4]
[328725229,1717734646242,-500.0,0.00029863,4]
[328725230,1717734646251,-500.0,0.00029863,4]
[328725231,1717734646261,-500.0,0.00029863,4]
[328725232,1717734646270,-500.0,0.00029863,4]
[328725233,1717734646280,-500.0,0.00029863,4]
[328725234,1717734646292,-500.0,0.00029863,4]
[328725235,1717734646301,-500.0,0.00029863,4]
[328725236,1717734646311,-500.0,0.00029863,4]
[328725237,1717734646321,-500.0,0.00029863,4]
[328725238,1717734646330,-500.0,0.00029863,4]
[328725239,1717734646339,-500.0,0.00029863,4]
[328725240,1717734646348,-500.0,0.00029863,4]
[328725241,1717734646358,-500.0,0.00029863,4]
[328725242,1717734646368,-500.0,0.00029863,4]
[328725243,1717734646535,-500.0,0.00029863,4]
[328725244,1717734646545,-500.0,0.00029863,4]
[328725245,1717734646554,-500.0,0.00029863,4]
[328725246,1717734646564,-500.0,0.00029863,4]
[328725247,1717734646573,-500.0,0.00029863,4]
[328725248,1717734646583,-500.0,0.00029863,4]
[328725250,1717734646593,-500.0,0.00029863,4]
[328725251,1717734646602,-500.0,0.00029863,4]
[328725253,1717734646612,-500.0,0.00029863,4]
[328725255,1717734646621,-500.0,0.00029863,4]
[328725257,1717734646631,-500.0,0.00029863,4]
[328725258,1717734646640,-331.84701303,0.00029863,4]
[328725261,1717734647058,-168.15298697,0.00029863,4]
[328725262,1717734647068,-500.0,0.00029863,4]
[328725263,1717734647078,-436.48301433,0.00029863,4]
[328725264,1717734647214,-210.78332715,0.00029861,2]
[328725265,1717734647224,-63.51698567,0.00029863,4]
[328725266,1717734647233,-500.0,0.00029863,4]
[328725267,1717734647243,-500.0,0.00029863,4]
[328725268,1717734647253,-500.0,0.00029863,4]
[328725269,1717734647264,-562.62181105,0.00029863,4]
[328725270,1717734647276,-500.0,0.00029863,4]
[328725271,1717734647289,-500.0,0.00029863,4]
[328725272,1717734647299,-595.21308836,0.00029863,4]
[328725273,1717734647309,-500.0,0.00029863,4]
[328725274,1717734647319,-500.0,0.00029863,4]
[328725275,1717734647329,-500.0,0.00029863,4]
[328725276,1717734647339,-500.0,0.00029863,4]
[328725277,1717734647348,-72.9233848,0.00029863,4]
[328725278,1717734647378,-427.0766152,0.00029863,4]
[328725279,1717734647388,-114.41479778,0.00029863,4]
[328725280,1717734647948,-1812.17,0.00029861,2]
[328725281,1717734648088,-1087.67839386,0.00029861,2]
[328725282,1717734648126,-1185.04815399,0.00029861,2]
[328725283,1717734648136,-1472.26358788,0.00029861,2]
[328725284,1717734648146,-385.58520222,0.00029863,4]
[328725285,1717734648155,-500.0,0.00029863,4]
[328725286,1717734648167,-500.0,0.00029863,4]
[328725287,1717734648177,-500.0,0.00029863,4]
[328725288,1717734648186,-277.2174601,0.00029863,4]
[328725289,1717734648201,-222.7825399,0.00029863,4]
[328725290,1717734648211,-267.7299212,0.00029863,4]
[328725291,1717734648221,-500.0,0.00029863,4]
[328725292,1717734648230,-500.0,0.00029863,4]
[328725293,1717734648239,-500.0,0.00029863,4]
[328725294,1717734648249,-500.0,0.00029863,4]
[328725295,1717734648259,-500.0,0.00029863,4]
[328725296,1717734648268,-500.0,0.00029863,4]
[328725297,1717734648279,-500.0,0.00029863,4]
[328725298,1717734648293,-522.98534612,0.00029863,4]
[328725299,1717734648302,-500.0,0.00029863,4]
[328725300,1717734648312,-500.0,0.00029863,4]
[328725301,1717734648322,-500.0,0.00029863,4]
[328725302,1717734648331,-500.0,0.00029863,4]
[328725303,1717734648340,-500.0,0.00029863,4]
[328725304,1717734648350,-500.0,0.00029863,4]
[328725305,1717734648360,-500.0,0.00029863,4]
[328725306,1717734648370,-500.0,0.00029863,4]
[328725307,1717734648379,-500.0,0.00029863,4]
[328725308,1717734648389,-500.0,0.00029863,4]
[328725309,1717734648399,-500.0,0.00029863,4]
[328725310,1717734648410,-500.0,0.00029863,4]
[328725311,1717734648420,-500.0,0.00029863,4]
[328725312,1717734648429,-500.0,0.00029863,4]
[328725313,1717734648438,-511.69053326,0.00029863,4]
[328725314,1717734648448,-291.7306509,0.00029863,4]
[328725315,1717734648457,-500.0,0.00029863,4]
[328725316,1717734648468,-500.0,0.00029863,4]
[328725317,1717734648478,-528.57516196,0.00029863,4]
[328725318,1717734648488,-500.0,0.00029863,4]
[328725319,1717734648498,-500.0,0.00029863,4]
[328725320,1717734648508,-551.50181311,0.00029863,4]
[328725321,1717734648518,-500.96,0.00029863,4]
[328725322,1717734648527,-206.24292649,0.00029863,4]
[328725323,1717734648556,-294.71707351,0.00029863,4]
[328725324,1717734648566,-547.09937694,0.00029863,4]
[328725325,1717734648575,-500.96,0.00029863,4]
[328725326,1717734648585,-500.0,0.00029863,4]
[328725327,1717734648594,-531.97945218,0.00029863,4]
[328725328,1717734648604,-500.0,0.00029863,4]
[328725329,1717734648614,-500.96,0.00029863,4]
[328725330,1717734648624,-500.0,0.00029863,4]
[328725331,1717734648633,-214.13398315,0.00029863,4]
[328725332,1717734648669,-286.82601685,0.00029863,4]
[328725333,1717734648679,-500.96,0.00029863,4]
[328725334,1717734648688,-383.26057916,0.00029863,4]
[328725340,1717734782863,5423.75369809,0.0003,40]
[328725344,1717734904414,549.27409697,0.0003,46]
[328725347,1717735156887,500.0,0.00029863,60]
[328725348,1717735157135,499.02572545,0.00029863,60]
[328725962,1717735832293,-293.43812873,0.00016203,2]
[328725963,1717735832306,-149.08333627,0.00016203,2]
[328725964,1717735832315,-150.0,0.00016285,2]
[328725965,1717735832325,-133.62193556,0.00016285,2]
[328725966,1717735832427,-287.89476307,0.00016285,2]
[328725967,1717735832440,-1479.32040512,0.00016285,2]
[328725968,1717735832449,-570.10729859,0.00016286,2]
[328725969,1717735832467,-5807.34633996,0.00016286,2]
[328725975,1717735838085,-4677.9289797,0.00016286,2]
[328725976,1717735838428,-13589.11528179,0.00016286,2]
[328725977,1717735838437,-210.0,0.00017914,2]
[328725978,1717735838447,-9999.99,0.00019726,2]
[328725979,1717735838457,-283.81,0.00019726,2]
[328725980,1717735838470,-457.1,0.0002,2]
[328725981,1717735838480,-499.99,0.0002,2]
[328725982,1717735838490,-150.99,0.0002,2]
[328725983,1717735838500,-364.12731579,0.0002,2]
[328725984,1717735838509,-226.6238354,0.000201,2]
[328725985,1717735838519,-150.0,0.00023863,2]
[328725986,1717735838529,-548.76898063,0.0002389,2]
[328725987,1717735838539,-155.46,0.00024384,2]
[328725988,1717735838549,-165.61,0.00024384,2]
[328725989,1717735838559,-500.0,0.00025939,2]
[328725990,1717735838568,-500.0,0.00025939,2]
[328725991,1717735838578,-326.44,0.00026136,2]
[328725992,1717735838588,-500.0,0.00027035,2]
[328725993,1717735838598,-500.0,0.00027035,2]
[328725994,1717735838608,-1896.0,0.000273,3]
[328725995,1717735838618,-1000.0,0.00027397,14]
[328725996,1717735838628,-1000.0,0.00027658,14]
[328725997,1717735838641,-520.5,0.00027874,2]
[328725998,1717735838652,-1000.0,0.00027919,14]
[328725999,1717735838662,-818.98,0.00027952,2]
[328726000,1717735838672,-250.0,0.00027956,2]
[328726001,1717735838683,-1000.0,0.00027968,2]
[328726002,1717735838694,-22137.09,0.00027984,2]
[328726004,1717735838704,-250.0,0.00028,2]
[328726007,1717735838716,-192.14,0.00028026,2]
[328726009,1717735838726,-250.0,0.00028107,2]
[328726010,1717735838736,-400.0,0.00028131,2]
[328726011,1717735838745,-500.0,0.00028131,2]
[328726012,1717735838756,-1000.0,0.0002818,14]
[328726013,1717735838766,-1430.51767816,0.00028368,2]
[328726014,1717735838776,-326.44,0.000284,2]
[328726015,1717735838786,-1000.0,0.00028441,14]
[328726016,1717735838795,-1000.0,0.00028702,14]
[328726017,1717735838805,-179.34,0.00028801,2]
[328726018,1717735838815,-1000.0,0.00028963,14]
[328726019,1717735838825,-265.97843345,0.00028999,2]
[328726020,1717735838835,-368.76082279,0.00029,2]
[328726021,1717735838845,-1000.0,0.00029224,14]
[328726022,1717735838855,-500.0,0.00029227,2]
[328726023,1717735838865,-155.60638073,0.00029264,2]
[328726024,1717735838877,-158.17888295,0.00029358,2]
[328726025,1717735838887,-211.4368,0.00029363,2]
[328726026,1717735838897,-257.773,0.00029363,2]
[328726027,1717735838907,-397.0587,0.00029363,2]
[328726028,1717735838916,-163.98,0.00029383,2]
[328726029,1717735838926,-381.3624099,0.00029406,2]
[328726030,1717735838936,-1850.0,0.00029463,7]
[328726031,1717735838946,-154.24763111,0.00029466,2]
[328726032,1717735838956,-153.9126031,0.00029467,2]
[328726033,1717735838966,-215.27620433,0.00029475,2]
[328726034,1717735838976,-215.27620433,0.00029477,2]
[328726035,1717735838986,-1000.0,0.00029485,14]
[328726036,1717735838996,-165.9373607,0.00029491,2]
[328726037,1717735839006,-503.29589681,0.00029535,2]
[328726038,1717735839016,-575.40016849,0.00029564,4]
[328726039,1717735839026,-381.3624099,0.00029571,2]
[328726040,1717735839037,-234.17683779,0.000296,15]
[328726041,1717735839047,-849.0,0.000296,2]
[328726042,1717735839058,-500.0,0.00029623,2]
[328726043,1717735839068,-200.0,0.00029623,2]
[328726044,1717735839078,-234.17683776,0.00029633,15]
[328726045,1717735839090,-381.3624099,0.00029649,2]
[328726046,1717735839101,-154.24763111,0.00029654,2]
[328726047,1717735839111,-160.88708197,0.00029659,2]
[328726048,1717735839122,-155.0,0.00029663,2]
[328726049,1717735839133,-2500.0,0.00029663,2]
[328726050,1717735839144,-234.17683776,0.00029667,15]
[328726051,1717735839155,-160.51715234,0.00029672,2]
[328726052,1717735839166,-1037.49,0.0002968,10]
[328726053,1717735839177,-864.57,0.0002968,10]
[328726054,1717735839187,-190.13,0.0002969,3]
[328726055,1717735839197,-570.42,0.0002969,3]
[328726056,1717735839207,-1244.99,0.0002969,10]
[328726057,1717735839218,-234.17683776,0.000297,15]
[328726058,1717735839228,-1000.0,0.000297,2]
[328726059,1717735839238,-224.0,0.000297,2]
[328726060,1717735839248,-354.0,0.000297,2]
[328726061,1717735839258,-47496.0546,0.000297,2]
[328726062,1717735839268,-2093.3058,0.000297,2]
[328726063,1717735839278,-240.02310365,0.00029712,2]
[328726064,1717735839288,-1284.72906312,0.00029719,15]
[328726065,1717735839298,-166.66666668,0.0002972,2]
[328726066,1717735839308,-189.18313531,0.00029725,2]
[328726067,1717735839318,-234.17683776,0.00029733,15]
[328726068,1717735839328,-154.77962958,0.00029742,2]
[328726069,1717735839338,-181.35330833,0.00029743,11]
[328726070,1717735839348,-1000.0,0.00029746,14]
[328726071,1717735839358,-1284.72906312,0.00029749,15]
[328726072,1717735839367,-381.3624099,0.00029751,2]
[328726073,1717735839378,-157.26422373,0.00029753,2]
[328726074,1717735839388,-154.77962958,0.00029758,2]
[328726075,1717735839398,-988.66629093,0.00029763,2]
[328726076,1717735839408,-452.32406217,0.00029763,2]
[328726077,1717735839418,-215.27620433,0.00029763,2]
[328726078,1717735839428,-37054.4498,0.00029763,2]
[328726079,1717735839438,-500.0,0.00029763,2]
[328726080,1717735839448,-7500.0,0.00029763,2]
[328726081,1717735839458,-162.44128538,0.00029763,7]
[328726082,1717735839468,-162.44128538,0.00029763,7]
[328726083,1717735839478,-162.44128538,0.00029763,7]
[328726084,1717735839487,-162.44128538,0.00029763,7]
[328726085,1717735839498,-162.44128538,0.00029763,7]
[328726086,1717735839507,-162.94,0.00029763,7]
[328726087,1717735839517,-195.00454245,0.00029763,7]
[328726088,1717735839527,-195.00454245,0.00029763,7]
[328726089,1717735839537,-195.00454245,0.00029763,7]
[328726090,1717735839547,-195.00454245,0.00029763,7]
[328726091,1717735839557,-195.00454245,0.00029763,7]
[328726092,1717735839567,-195.00454245,0.00029763,7]
[328726093,1717735839578,-195.00454245,0.00029763,7]
[328726094,1717735839588,-195.00454245,0.00029763,7]
[328726095,1717735839598,-195.00454245,0.00029763,7]
[328726096,1717735839608,-195.00454245,0.00029763,7]
[328726097,1717735839618,-195.00454245,0.00029763,7]
[328726098,1717735839628,-195.00454245,0.00029763,7]
[328726099,1717735839638,-195.00454245,0.00029763,7]
[328726100,1717735839652,-195.00454245,0.00029763,7]
[328726101,1717735839663,-195.00454245,0.00029763,7]
[328726102,1717735839672,-195.00454245,0.00029763,7]
[328726103,1717735839684,-195.00454245,0.00029763,7]
[328726104,1717735839694,-195.00454245,0.00029763,7]
[328726105,1717735839704,-195.00454245,0.00029763,7]
[328726106,1717735839715,-184.61990287,0.00029763,7]
[328726107,1717735839726,-185.11,0.00029763,7]
[328726108,1717735839737,-164.27324699,0.00029763,7]
[328726109,1717735839748,-164.27324699,0.00029763,7]
[328726110,1717735839758,-164.27324699,0.00029763,7]
[328726111,1717735839767,-164.27324699,0.00029763,7]
[328726112,1717735839777,-164.27324699,0.00029763,7]
[328726113,1717735839789,-164.27324699,0.00029763,7]
[328726114,1717735839799,-164.27324699,0.00029763,7]
[328726115,1717735839808,-164.27324699,0.00029763,7]
[328726116,1717735839818,-190.57,0.00029763,7]
[328726117,1717735839828,-152.35974635,0.00029763,7]
[328726118,1717735839838,-152.35974635,0.00029763,7]
[328726119,1717735839848,-152.35974635,0.00029763,7]
[328726120,1717735839858,-152.35974635,0.00029763,7]
[328726121,1717735839869,-189.17080729,0.00029763,7]
[328726122,1717735839879,-189.67,0.00029763,7]
[328726123,1717735839890,-151.48664584,0.00029763,7]
[328726124,1717735839900,-151.48664584,0.00029763,7]
[328726125,1717735839910,-151.48664584,0.00029763,7]
[328726126,1717735839921,-151.48664584,0.00029763,7]
[328726127,1717735839931,-151.48664584,0.00029763,7]
[328726128,1717735839942,-151.48664584,0.00029763,7]
[328726129,1717735839952,-151.48664584,0.00029763,7]
[328726130,1717735839962,-151.48664584,0.00029763,7]
[328726131,1717735839973,-151.48664584,0.00029763,7]
[328726132,1717735839983,-234.17683776,0.00029767,15]
[328726133,1717735840002,-160.14959943,0.00029767,2]
[328726134,1717735840014,-988.66629085,0.00029775,2]
[328726135,1717735840024,-1284.72906312,0.00029779,15]
[328726136,1717735840035,-151.0,0.00029782,2]
[328726137,1717735840045,-988.66629085,0.00029788,2]
[328726138,1717735840057,-189.18313531,0.00029792,2]
[328726139,1717735840067,-169.1813528,0.00029793,2]
[328726140,1717735840077,-345.0,0.000298,2]
[328726141,1717735840088,-160.0,0.000298,2]
[328726142,1717735840098,-234.17683776,0.000298,15]
[328726143,1717735840108,-1014.52,0.000298,2]
[328726144,1717735840118,-302.18,0.000298,2]
[328726145,1717735840128,-150.0,0.000298,6]
[328726146,1717735840139,-68085.7392573,0.000298,2]
[328726147,1717735840149,-988.66629085,0.000298,2]
[328726148,1717735840160,-1284.72906312,0.00029809,15]
[328726149,1717735840170,-988.66629085,0.00029813,2]
[328726150,1717735840181,-215.27620433,0.00029818,2]
[328726151,1717735840191,-988.66629085,0.00029825,2]
[328726152,1717735840201,-151.0,0.00029829,2]
[328726153,1717735840211,-250.49088,0.00029829,2]
[328726154,1717735840223,-452.32406215,0.00029832,2]
[328726155,1717735840233,-196.0,0.00029833,15]
[328726156,1717735840243,-234.17683776,0.00029833,15]
[328726157,1717735840254,-443.60484978,0.00029834,2]
[328726158,1717735840265,-988.66629085,0.00029838,2]
[328726159,1717735840275,-1284.72906312,0.0002984,15]
[328726160,1717735840286,-160.51715234,0.00029843,2]
[328726161,1717735840297,-196.0,0.00029843,15]
[328726162,1717735840307,-16080.6893084,0.00029849,2]
[328726163,1717735840317,-320.4185766,0.00029849,2]
[328726164,1717735840328,-585.1863414,0.00029849,2]
[328726165,1717735840338,-240.1046628,0.00029849,2]
[328726166,1717735840349,-988.66629085,0.0002985,2]
[328726167,1717735840359,-196.0,0.00029853,15]
[328726168,1717735840370,-4992.38282343,0.00029859,4]
[328726169,1717735840381,-196.0,0.0002986,15]
[328726170,1717735840391,-222.48333107,0.00029861,2]
[328726171,1717735840400,-542.85304648,0.00029861,2]
[328726172,1717735840411,-216.05399442,0.00029861,2]
[328726173,1717735840421,-591.005653,0.00029861,2]
[328726174,1717735840430,-4161.84509003,0.00029861,2]
[328726175,1717735840440,-303.52707382,0.00029861,2]
[328726176,1717735840451,-283.8864487,0.00029861,4]
[328726177,1717735840461,-332.08717779,0.00029861,2]
[328726178,1717735840473,-278.11688287,0.00029861,2]
[328726179,1717735840483,-158.94995359,0.00029861,2]
[328726180,1717735840494,-582.05673989,0.00029861,5]
[328726181,1717735840504,-1804.68755728,0.00029861,2]
[328726182,1717735840514,-155.0,0.00029861,7]
[328726183,1717735840524,-155.48901074,0.00029861,2]
[328726184,1717735840534,-3301.05463058,0.00029862,2]
[328726185,1717735840544,-549.69121508,0.00029862,2]
[328726186,1717735840554,-157.52675519,0.00029862,2]
[328726187,1717735840564,-155.31721656,0.00029862,2]
[328726188,1717735840574,-736.13179394,0.00029862,2]
[328726189,1717735840584,-45250.24119002,0.00029862,2]
[328726190,1717735840594,-5814.77,0.00029862,4]
[328726191,1717735840604,-5814.77,0.00029862,4]
[328726192,1717735840614,-5814.77,0.00029862,4]
[328726193,1717735840624,-5814.77,0.00029862,4]
[328726194,1717735840635,-5814.77,0.00029862,4]
[328726195,1717735840648,-5814.77,0.00029862,4]
[328726196,1717735840659,-5814.77,0.00029862,4]
[328726197,1717735840670,-5814.77,0.00029862,4]
[328726198,1717735840680,-5814.77,0.00029862,4]
[328726199,1717735840691,-5814.77,0.00029862,4]
[328726200,1717735840701,-5814.77,0.00029862,4]
[328726201,1717735840712,-5814.77,0.00029862,4]
[328726202,1717735840724,-5814.77,0.00029862,4]
[328726203,1717735840733,-5814.77,0.00029862,4]
[328726204,1717735840744,-5814.77,0.00029862,4]
[328726205,1717735840754,-5814.77,0.00029862,4]
[328726206,1717735840764,-5814.77,0.00029862,4]
[328726207,1717735840774,-5814.77,0.00029862,4]
[328726208,1717735840784,-5814.77,0.00029862,4]
[328726209,1717735840794,-5814.77,0.00029862,4]
[328726210,1717735840803,-5814.77,0.00029862,4]
[328726212,1717735840814,-5814.77,0.00029862,4]
[328726214,1717735840824,-5814.77,0.00029862,4]
[328726215,1717735840834,-5814.96156936,0.00029862,4]
[328726216,1717735840843,-988.66629085,0.00029863,2]
[328726217,1717735840853,-8531.11519735,0.00029863,13]
[328726218,1717735840863,-358.09478857,0.00029863,5]
[328726219,1717735840873,-500.0,0.00029863,4]
[328726220,1717735840883,-500.0,0.00029863,4]
[328726221,1717735840893,-500.0,0.00029863,4]
[328726222,1717735840903,-500.0,0.00029863,4]
[328726223,1717735840913,-500.0,0.00029863,4]